bitfinex/quotes_ETHUSD_20250925
["timestamp","ask_amount","ask_price","bid_price","bid_amount"]
[1758839863439,13.30163793,3907.4,3907.1,0.6862]
[1758839863669,3.0,3907.3,3907.1,0.02]
[1758839863870,4.324,3907.2,3907.1,0.02]
[1758839864167,7.324,3907.2,3907.1,0.02]
[1758839864572,3.0,3907.1,3906.8,0.2004]
[1758839864867,4.323,3907.0,3906.8,0.4358]
[1758839865069,4.323,3906.9,3906.6,2.55977031]
[1758839865386,4.323,3906.8,3906.7,0.4358]
[1758839865541,4.324,3906.8,3906.7,0.4358]
[1758839866285,4.324,3906.8,3906.7,2.99550512]
[1758839866475,4.324,3906.8,3906.7,3.22590512]
[1758839866965,0.792,3907.7,3906.7,3.22590512]
[1758839867294,9.01511923,3907.6,3906.9,2.55956286]
[1758839867477,9.01511923,3907.6,3906.8,2.79002461]
[1758839867795,9.01511923,3907.6,3906.7,0.4358]
[1758839867796,6.456,3907.6,3906.7,0.4358]
[1758839867982,6.456,3907.6,3906.9,0.2304]
[1758839868178,3.6362809,3907.5,3906.9,0.2304]
[1758839868486,0.1272,3907.0,3906.9,0.2304]
[1758839868692,4.4492,3907.0,3906.9,0.2304]
[1758839868861,4.4492,3907.0,3906.6,0.2452]
[1758839869056,4.4492,3907.0,3906.3,0.1272]
[1758839869280,3.0,3906.9,3906.3,0.1272]
[1758839869603,0.1272,3906.6,3906.1,0.7146]
[1758839869760,0.1272,3906.4,3906.1,0.7146]
[1758839870102,4.322,3906.3,3906.1,0.2652]
[1758839870269,4.322,3906.3,3906.1,0.02]
[1758839870473,4.7925,3906.3,3906.1,0.02]
[1758839870659,5.56003276,3906.2,3906.1,0.02]
[1758839871163,7.34562627,3906.2,3906.1,0.02]
[1758839871876,4.78559351,3906.2,3906.1,0.02]
[1758839872380,6.87512627,3906.2,3906.1,0.02]
[1758839872786,7.58412627,3906.2,3906.1,0.02]
[1758839873467,6.87512627,3906.2,3906.1,0.02]
[1758839874203,1.31509351,3906.2,3906.1,0.02]
[1758839874381,9.46,3906.2,3906.1,0.2652]
[1758839874799,7.327,3906.2,3906.1,0.02]
[1758839875191,9.46,3906.2,3906.1,0.02]
[1758839875483,10.406,3906.2,3906.1,0.02]
[1758839876082,7.326,3906.2,3906.1,0.7146]
[1758839876300,7.326,3906.2,3906.1,0.02]
[1758839877189,7.326,3906.2,3906.1,0.2652]
[1758839877510,7.326,3906.2,3906.1,0.02]
[1758839878010,7.7965,3906.2,3906.1,0.02]
[1758839878212,8.85478331,3906.2,3906.1,0.02]
[1758839878581,4.52878331,3906.2,3906.1,0.02]
[1758839878782,4.52878331,3906.2,3906.1,0.7166]
[1758839878783,9.466,3906.2,3906.1,0.7166]
[1758839878982,9.86752132,3906.2,3906.1,0.7166]
[1758839879606,12.42755408,3906.2,3906.1,0.022]
[1758839879906,10.57652132,3906.2,3906.1,0.022]
[1758839880082,9.466,3906.2,3906.1,0.022]
[1758839880278,10.4835,3906.2,3906.1,0.022]
[1758839880608,13.04353276,3906.2,3906.1,0.022]
[1758839880909,10.4835,3906.2,3906.1,0.022]
[1758839881123,13.04353276,3906.2,3906.1,0.022]
[1758839881324,10.4835,3906.2,3906.1,0.022]
[1758839881507,3.0,3906.2,3906.1,0.2672]
[1758839881833,9.467,3906.2,3906.1,0.2672]
[1758839882426,9.467,3906.2,3906.1,0.7166]
[1758839882427,3.0,3906.2,3906.1,0.7166]
[1758839882599,9.467,3906.2,3906.1,0.7166]
[1758839884130,3.0,3906.2,3906.1,3.2766983]
[1758839884327,4.335,3906.2,3906.1,3.60436813]
[1758839884840,4.335,3906.2,3906.1,3.2766983]
[1758839885928,4.335,3906.2,3906.1,0.2672]
[1758839886131,4.335,3906.2,3906.1,0.022]
[1758839886494,4.335,3906.2,3906.1,0.248]
[1758839886712,4.335,3906.2,3906.1,0.7082]
[1758839886907,4.335,3906.2,3906.1,3.2682983]
[1758839887508,4.335,3906.2,3906.1,0.022]
[1758839887898,4.335,3906.2,3906.1,0.248]
[1758839888100,0.001,3906.8,3906.4,2.55989613]
[1758839888327,3.0,3906.6,3906.4,2.55989613]
[1758839888533,7.335,3906.5,3906.4,2.55989613]
[1758839888764,2.133,3906.7,3906.4,2.55989613]
[1758839888765,0.001,3906.8,3906.7,2.55970512]
[1758839888911,1.791,3906.8,3906.5,0.6862]
[1758839889111,1.791,3906.8,3906.1,0.022]
[1758839889310,1.9701,3906.8,3906.1,0.248]
[1758839889538,3.0,3906.7,3906.1,2.80808607]
[1758839889763,3.0,3906.7,3906.1,0.248]
[1758839889764,4.337,3906.6,3906.1,0.248]
[1758839890070,4.337,3906.6,3906.1,2.58209206]
[1758839890355,4.337,3906.6,3906.3,2.55996434]
[1758839890510,4.337,3906.6,3906.3,2.78596434]
[1758839890807,4.337,3906.6,3906.4,0.226]
[1758839891210,4.337,3906.6,3906.1,0.022]
[1758839891868,4.337,3906.6,3906.3,2.55991861]
[1758839892156,4.337,3906.6,3906.4,0.6862]
[1758839892645,7.337,3906.6,3906.5,0.226]
[1758839893010,7.337,3906.6,3906.1,0.022]
[1758839893212,7.337,3906.6,3906.2,0.226]
[1758839893478,7.337,3906.6,3906.2,2.785999]
[1758839893750,7.337,3906.6,3906.3,2.55996172]
[1758839893956,7.337,3906.6,3906.4,2.55990164]
[1758839894127,7.337,3906.6,3906.3,2.55994211]
[1758839894571,3.0,3906.6,3906.5,2.55983617]
[1758839894715,0.001,3906.8,3906.7,2.55970512]
[1758839895062,7.336,3906.8,3906.6,0.6862]
[1758839895223,3.0,3906.5,3906.1,0.022]
[1758839895422,4.338,3906.4,3906.1,0.022]
[1758839895738,10.19,3906.3,3906.1,0.022]
[1758839896437,12.75002235,3906.3,3906.1,0.022]
[1758839896641,3.0,3906.2,3906.1,0.022]
[1758839896845,3.0,3906.2,3906.1,2.5820983]
[1758839897039,3.0,3906.2,3906.1,3.0422983]
[1758839897040,7.341,3906.2,3906.1,3.0422983]
[1758839897240,7.19,3906.3,3906.1,3.0422983]
[1758839897241,7.19,3906.3,3906.2,2.56003276]
[1758839897544,11.531,3906.3,3906.2,3.24623276]
[1758839897862,11.531,3906.3,3906.2,2.78603276]
[1758839898165,11.531,3906.3,3906.2,3.22113276]
[1758839900253,4.341,3906.3,3906.2,3.22113276]
[1758839902765,4.341,3906.3,3906.2,2.91323276]
[1758839902956,4.341,3906.3,3906.2,3.89787168]
[1758839905037,3.001,3906.8,3906.7,2.55970512]
[1758839905038,0.001,3906.8,3906.7,2.55970512]
[1758839905237,0.001,3906.8,3906.7,3.24870217]
[1758839908151,0.001,3906.8,3906.7,3.22310512]
[1758839908366,0.001,3906.8,3906.7,4.31256344]
[1758839908836,0.001,3906.8,3906.7,4.33816049]
[1758839910839,0.001,3906.8,3906.7,1.75285832]
[1758839911040,0.001,3906.8,3906.7,2.55970512]
[1758839911456,0.001,3906.8,3906.6,2.55976205]
[1758839911678,0.001,3906.8,3906.7,2.55970512]
[1758839912454,0.6728,3906.8,3906.7,2.55970512]
[1758839913084,0.6728,3906.8,3906.6,2.55972746]
[1758839913586,0.6728,3906.8,3906.7,2.55970512]
[1758839914013,0.6728,3906.8,3906.1,0.022]
[1758839914304,0.6728,3906.8,3906.4,2.55983914]
[1758839914457,0.6718,3906.7,3906.4,2.55983914]
[1758839914652,0.4466,3906.6,3906.3,2.55994845]
[1758839914886,0.4466,3906.6,3906.2,2.56002823]
[1758839914887,0.6718,3906.5,3906.2,2.56002823]
[1758839915093,0.4466,3906.4,3906.1,0.022]
[1758839915390,7.335,3906.6,3906.4,2.55990169]
[1758839915583,7.7816,3906.6,3906.4,2.55990169]
[1758839915791,8.0068,3906.6,3906.4,2.55990169]
[1758839916086,15.1968,3906.6,3906.4,2.55990169]
[1758839916292,0.6718,3906.5,3906.1,2.58204966]
[1758839916456,0.6718,3906.4,3906.1,0.022]
[1758839916856,15.99032,3906.6,3906.1,0.022]
[1758839917057,0.6718,3906.3,3906.1,0.022]
[1758839917489,4.335,3906.2,3906.1,0.022]
[1758839917694,5.0068,3906.2,3906.1,0.022]
[1758839917988,4.334,3906.2,3906.1,2.58208323]
[1758839918567,4.334,3906.2,3906.1,0.022]
[1758839918775,4.334,3906.2,3906.1,2.81039691]
[1758839919164,4.334,3906.2,3906.1,2.58209691]
[1758839919965,4.334,3906.2,3906.1,0.022]
[1758839920188,4.334,3906.2,3906.1,2.5820983]
[1758839920189,5.0058,3906.2,3906.1,2.5820983]
[1758839921801,4.334,3906.2,3906.1,2.5820983]
[1758839922805,4.334,3906.2,3906.1,0.022]
[1758839922992,4.334,3906.2,3906.1,2.5820983]
[1758839923187,4.334,3906.2,3906.1,0.022]
[1758839923380,4.334,3906.2,3906.1,2.5820983]
[1758839923590,4.334,3906.2,3906.1,0.022]
[1758839923792,4.334,3906.2,3906.1,2.5820983]
[1758839923989,4.334,3906.2,3906.1,2.8103983]
[1758839924189,4.334,3906.2,3906.1,3.2454983]
[1758839924770,12.323,3906.6,3906.1,3.2454983]
[1758839924771,7.19,3906.6,3906.5,2.55983617]
[1758839925076,7.19,3906.7,3906.6,2.55977064]
[1758839925284,7.19,3906.7,3906.6,3.22317064]
[1758839926531,11.521,3906.8,3906.7,2.55970512]
[1758839928941,7.191,3906.8,3906.7,2.55970512]
[1758839929134,11.522,3906.8,3906.7,2.55970512]
[1758839929422,11.52,3906.8,3906.7,2.55970512]
[1758839929586,11.52,3906.8,3906.5,2.55982796]
[1758839929788,4.329,3906.7,3906.4,2.55990169]
[1758839930019,4.329,3906.7,3906.6,2.55977064]
[1758839930832,5.56806311,3906.7,3906.3,2.55992758]
[1758839931120,5.56806311,3906.7,3906.6,2.55977064]
[1758839931121,4.329,3906.7,3906.6,2.55977064]
[1758839931807,10.191,3906.8,3906.7,2.55970512]
[1758839932124,14.52,3906.8,3906.7,2.79190512]
[1758839932286,14.52,3906.8,3906.7,3.26490512]
[1758839933025,14.52,3906.8,3906.7,2.79190512]
[1758839933832,14.52,3906.8,3906.7,2.55970512]
[1758839935736,14.52,3906.8,3906.7,2.79190512]
[1758839935737,14.518,3906.8,3906.7,2.79190512]
[1758839936235,14.518,3906.8,3906.7,2.55970512]
[1758839936617,7.328,3906.8,3906.7,2.55970512]
[1758839937540,3.001,3906.8,3906.7,2.55970512]
[1758839937708,0.001,3906.8,3906.7,3.86029394]
[1758839937909,0.001,3906.8,3906.7,3.28229394]
[1758839938130,0.001,3906.8,3906.7,3.98749394]
[1758839938756,0.001,3906.8,3906.7,2.68690512]
[1758839940625,0.001,3906.8,3906.7,0.1272]
[1758839940817,0.001,3906.8,3906.7,2.55970512]
[1758839945210,0.001,3906.8,3906.6,0.002]
[1758839945415,0.001,3906.8,3906.7,2.55970512]
[1758839946412,0.001,3906.8,3906.6,0.002]
[1758839946750,0.001,3906.8,3906.7,2.55970512]
[1758839947743,7.191,3906.8,3906.7,2.55970512]
[1758839950978,9.09938,3906.8,3906.6,0.002]
[1758839951181,8.41138,3906.8,3906.6,0.002]
[1758839951482,5.014,3906.7,3906.6,0.002]
[1758839953183,8.014,3906.7,3906.6,0.002]
[1758839953340,10.57370512,3906.7,3906.6,0.002]
[1758839953539,12.75074249,3906.7,3906.6,0.002]
[1758839953959,9.50303737,3906.7,3906.6,0.002]
[1758839954147,7.7656,3906.7,3906.6,0.002]
[1758839954353,8.014,3906.7,3906.6,0.002]
[1758839954547,10.57370512,3906.7,3906.6,0.002]
[1758839955844,11.36570512,3906.7,3906.6,0.002]
[1758839956452,16.5250172,3906.7,3906.6,0.002]
[1758839956651,18.82178201,3906.7,3906.6,0.002]
[1758839958996,19.32741555,3906.7,3906.6,0.002]
[1758839960087,19.58371555,3906.7,3906.6,0.002]
[1758839960252,19.32741555,3906.7,3906.6,0.002]
[1758839962604,2.56062274,3905.3,3904.4,0.2459]
[1758839962899,7.329,3905.3,3905.1,0.2659]
[1758839963100,9.462,3905.3,3905.2,0.73193429]
[1758839963872,3.0,3905.3,3905.2,1.18283429]
[1758839964070,3.0,3905.3,3905.2,3.7435226]
[1758839964390,4.33,3905.9,3905.7,2.56035721]
[1758839964687,7.33,3905.8,3905.7,2.56035721]
[1758839964887,7.334,3905.8,3905.7,2.56035721]
[1758839965085,3.0,3905.7,3905.4,2.56055417]
[1758839965285,3.0,3905.7,3905.5,0.6968]
[1758839965488,3.0,3905.7,3905.6,0.6968]
[1758839966192,4.334,3905.8,3905.6,0.6968]
[1758839966692,7.334,3905.8,3905.7,0.2459]
[1758839967709,3.0,3905.8,3905.7,3.25716049]
[1758839967888,0.40152528,3906.3,3906.0,2.56013992]
[1758839968093,4.333,3906.2,3906.0,2.56013992]
[1758839968413,7.333,3906.2,3906.1,0.6968]
[1758839969217,4.333,3906.2,3906.1,0.6968]
[1758839970000,0.001,3906.8,3906.1,3.25687837]
[1758839970205,3.0,3906.6,3906.2,0.6968]
[1758839970403,3.0,3906.4,3906.2,0.6968]
[1758839970696,7.335,3906.3,3906.2,2.56003276]
[1758839970917,0.001,3906.8,3906.2,2.56003276]
[1758839971258,3.0,3906.6,3906.3,0.6968]
[1758839971424,3.0,3906.4,3906.2,2.56003276]
[1758839971615,4.335,3906.3,3906.2,2.56003276]
[1758839971926,0.001,3906.8,3906.5,2.55982485]
[1758839972228,3.0,3906.6,3906.5,2.55982485]
[1758839972441,3.1272,3906.6,3906.5,3.25662485]
[1758839973509,3.1272,3906.6,3906.5,0.2459]
[1758839973717,3.1272,3906.6,3906.4,2.55988494]
[1758839973911,7.334,3906.5,3906.4,2.55988494]
[1758839974521,7.334,3906.5,3906.4,3.25668494]
[1758839974724,7.334,3906.5,3906.4,0.2459]
[1758839975125,3.0,3906.4,3906.2,2.56003276]
[1758839975327,4.332,3906.3,3906.2,2.56003276]
[1758839975540,4.332,3906.3,3906.2,3.25683276]
[1758839975708,0.1272,3906.6,3906.2,3.25682895]
[1758839975923,7.332,3906.5,3906.4,2.55984539]
[1758839976252,7.332,3906.5,3906.4,3.25664539]
[1758839976454,0.001,3906.8,3906.5,2.55983617]
[1758839976742,4.331,3906.7,3906.6,2.55977064]
[1758839976911,7.331,3906.7,3906.6,3.25657064]
[1758839977963,0.001,3906.8,3906.7,2.55970512]
[1758839978140,7.339,3906.8,3906.7,3.25650512]
[1758839978454,7.339,3906.8,3906.7,4.02626781]
[1758839981175,4.339,3906.8,3906.7,4.02626781]
[1758839981335,0.001,3906.8,3906.7,4.71046871]
[1758839982377,0.001,3906.8,3906.7,5.50246871]
[1758839982678,0.001,3906.8,3906.7,9.81087166]
[1758839985444,0.02,3907.9,3907.8,2.55898459]
[1758839985673,0.02,3907.9,3907.8,7.14888305]
[1758839985872,0.02,3907.9,3907.8,7.84568305]
[1758839986034,0.02,3907.9,3907.8,8.61519696]
[1758839986682,0.02,3907.9,3907.8,4.28119696]
[1758839986845,0.02,3907.9,3907.8,8.61419696]
[1758839987156,0.02,3907.9,3907.8,3.3284985]
[1758839987563,4.99558949,3907.9,3907.7,2.55903651]
[1758839987766,4.76228949,3907.9,3907.8,2.55898459]
[1758839988080,0.02,3907.9,3907.8,2.55898459]
[1758839988281,0.02,3907.9,3907.4,2.55918779]
[1758839988282,3.0,3907.8,3907.4,2.55918779]
[1758839988439,3.0,3907.8,3907.5,2.55916692]
[1758839988440,0.6842,3907.7,3907.5,2.55916692]
[1758839988870,0.6842,3907.6,3907.5,2.55916692]
[1758839990072,0.452,3907.6,3907.5,2.55916692]
[1758839990271,0.452,3907.6,3907.3,2.55930022]
[1758839991474,3.2322,3907.8,3907.2,0.002]
[1758839991475,0.452,3907.5,3907.2,0.002]
[1758839991672,3.0,3907.8,3907.2,0.002]
[1758839991869,0.452,3907.4,3907.2,0.002]
[1758839992170,0.2322,3907.5,3907.2,0.002]
[1758839992171,4.29698949,3907.5,3907.2,0.002]
[1758839992394,0.6842,3907.3,3907.2,0.002]
[1758839992551,5.0182,3907.3,3907.2,0.002]
[1758839992934,6.37557825,3907.3,3907.2,0.002]
[1758839993568,6.14337825,3907.3,3907.2,0.002]
[1758839993818,5.0182,3907.3,3907.2,0.002]
[1758839994879,5.01366,3907.3,3907.2,0.002]
[1758839995973,4.332,3907.3,3907.2,0.002]
[1758839998054,7.19,3907.4,3907.2,0.002]
[1758839998252,3.0,3907.8,3907.3,0.1272]
[1758839998458,0.021,3907.9,3907.8,2.55898459]
[1758839998767,0.021,3907.9,3907.6,0.1272]
[1758839998979,0.021,3907.9,3907.7,2.55899675]
[1758839999206,0.021,3907.9,3907.6,2.68629563]
[1758839999386,0.473,3907.9,3907.6,0.1272]
[1758839999686,0.021,3907.9,3907.6,0.3708]
[1758839999896,0.021,3907.9,3907.8,2.55898459]
[1758840000186,0.021,3907.9,3907.7,0.2436]
[1758840000357,0.021,3907.9,3907.8,3.26347443]
[1758840000550,0.021,3907.9,3907.8,4.40633315]
[1758840001558,0.021,3907.9,3907.8,4.25354331]
[1758840002211,0.021,3907.9,3907.3,0.2436]
[1758840002492,0.021,3907.9,3907.2,0.77162051]
[1758840002687,0.021,3907.9,3907.5,2.55911706]
[1758840003288,0.021,3907.9,3907.2,0.77162051]
[1758840003654,0.021,3907.9,3907.8,2.55898459]
[1758840004059,0.021,3907.9,3907.8,2.80488459]
[1758840004694,0.021,3907.9,3907.3,4.5799]
[1758840004877,0.4869,3907.9,3907.8,2.55898459]
[1758840005080,0.021,3907.9,3907.8,2.55898459]
[1758840005688,0.021,3907.9,3907.7,2.5590285]
[1758840006001,0.021,3907.9,3907.8,2.55898459]
[1758840006160,0.021,3907.9,3907.5,0.2459]
[1758840006365,0.4869,3907.9,3907.6,2.55910856]
[1758840006777,0.4869,3907.9,3907.8,2.55898459]
[1758840006976,0.8281,3907.9,3907.2,0.77162051]
[1758840007181,4.29698949,3907.5,3907.2,0.002]
[1758840007376,3.0,3907.7,3907.4,2.55924464]
[1758840007867,3.0,3907.7,3907.2,0.002]
[1758840008105,0.4659,3907.6,3907.2,2.56133011]
[1758840008289,3.0,3907.7,3907.3,2.55930223]
[1758840008494,3.0,3907.7,3907.2,2.56135076]
[1758840008831,0.715,3907.7,3907.2,2.56135076]
[1758840009113,0.715,3907.7,3907.2,2.56137118]
[1758840009114,0.4659,3907.6,3907.2,2.56137118]
[1758840009282,0.4659,3907.5,3907.2,0.002]
[1758840009486,0.715,3907.5,3907.2,0.002]
[1758840009682,5.045,3907.4,3907.2,0.002]
[1758840009888,3.8068,3907.6,3907.2,2.56133516]
[1758840010097,3.0,3907.6,3907.2,2.56133516]
[1758840010304,3.0,3907.6,3907.2,2.80723516]
[1758840010906,4.332,3907.7,3907.2,2.56133516]
[1758840011106,4.331,3907.7,3907.3,2.55925977]
[1758840011279,4.331,3907.7,3907.2,2.80727215]
[1758840011478,4.331,3907.7,3907.4,2.55922057]
[1758840011675,0.021,3907.9,3907.7,2.55902227]
[1758840011884,4.331,3907.8,3907.7,2.55902227]
[1758840012392,0.021,3907.9,3907.8,2.55898459]
[1758840012616,0.021,3907.9,3907.8,2.58457443]
[1758840012822,0.021,3907.9,3907.8,2.68618459]
[1758840014101,0.021,3907.9,3907.8,8.34801566]
[1758840014296,0.021,3907.9,3907.8,4.01601566]
[1758840014501,0.021,3907.9,3907.8,7.64681566]
[1758840014811,0.021,3907.9,3907.8,8.34801566]
[1758840015333,0.021,3907.9,3907.8,3.56071566]
[1758840015515,0.021,3907.9,3907.8,4.01601566]
[1758840016830,0.021,3907.9,3907.8,4.0416055]
[1758840018034,0.021,3907.9,3907.8,4.8336055]
[1758840018609,0.021,3907.9,3907.8,4.80801566]
[1758840018819,0.021,3907.9,3907.8,4.01601566]
[1758840019128,0.021,3907.9,3907.8,8.31391566]
[1758840019328,0.021,3907.9,3907.8,7.87741566]
[1758840020022,0.021,3907.9,3907.8,8.31291566]
[1758840020728,0.021,3907.9,3907.8,8.23581566]
[1758840020911,0.021,3907.9,3907.8,8.67131566]
[1758840025842,1e-08,3907.9,3907.8,9.46331566]
[1758840026412,1e-08,3907.9,3907.8,11.59431566]
[1758840026638,1e-08,3907.9,3907.8,4.33831566]
[1758840026841,1e-08,3907.9,3907.8,8.23481566]
[1758840027532,1e-08,3907.9,3907.8,3.90281566]
[1758840027732,1e-08,3907.9,3907.8,8.23581566]
[1758840028447,1e-08,3907.9,3907.8,8.67131566]
[1758840030643,1e-08,3907.9,3907.8,8.00621566]
[1758840031925,1e-08,3907.9,3907.8,10.67311566]
[1758840033919,1e-08,3907.9,3907.8,10.67211566]
[1758840034854,1e-08,3907.9,3907.8,11.46411566]
[1758840035452,1e-08,3907.9,3907.8,11.43252305]
[1758840036523,0.40118468,3911.8,3907.9,4.42939904]
[1758840036770,0.001,3912.4,3910.8,2.55702158]
[1758840036771,0.6629,3911.6,3910.8,2.55702158]
[1758840036934,0.001,3911.6,3910.8,9.08459179]
[1758840037137,0.001,3911.6,3910.8,9.72412158]
[1758840037331,0.001,3911.6,3910.8,10.35275265]
[1758840037532,1e-08,3910.9,3910.8,10.45526221]
[1758840037928,1e-08,3910.9,3910.8,10.35275265]
[1758840038126,1e-08,3910.9,3910.8,11.14475265]
[1758840038544,1e-08,3910.9,3910.8,11.14575265]
[1758840039276,1e-08,3910.9,3910.8,14.14575265]
[1758840039435,1e-08,3911.9,3911.8,2.55636791]
[1758840039635,1e-08,3911.9,3911.8,9.08493158]
[1758840039847,1e-08,3911.9,3911.8,9.05936791]
[1758840041472,1e-08,3911.9,3911.8,10.82528506]
[1758840041976,1e-08,3911.9,3911.8,10.95248506]
[1758840042859,1e-08,3911.9,3911.8,11.74448506]
[1758840043371,1e-08,3912.5,3912.4,3.34797587]
[1758840043671,1e-08,3912.5,3912.4,8.3309394]
[1758840043858,1e-08,3912.5,3912.4,8.66217965]
[1758840044045,1e-08,3912.5,3912.4,4.06557965]
[1758840044250,0.66190001,3912.5,3912.4,2.55597587]
[1758840044436,0.66190001,3912.5,3911.7,4.374]
[1758840044641,0.6619,3912.4,3910.8,0.2296]
[1758840044875,0.6619,3912.4,3911.9,2.55625461]
[1758840045056,0.6619,3912.3,3911.9,3.84525461]
[1758840045375,0.6619,3912.2,3912.1,2.55617187]
[1758840045549,0.6619,3912.2,3912.0,2.55621907]
[1758840045869,0.6619,3912.1,3911.9,2.55629912]
[1758840046070,0.6619,3912.0,3911.9,2.55629912]
[1758840046236,1e-08,3912.5,3911.7,6.93142837]
[1758840046566,0.001,3912.3,3911.7,6.93142837]
[1758840046760,0.6619,3912.2,3912.1,2.55611404]
[1758840048238,0.6619,3912.2,3912.0,2.5562232]
[1758840048468,0.6804,3912.1,3912.0,2.5562232]
[1758840048966,0.6804,3912.1,3911.7,6.92838925]
[1758840049267,0.6804,3912.0,3911.8,2.5563617]
[1758840049466,0.001,3912.3,3911.9,2.55628584]
[1758840049631,0.001,3912.3,3911.7,6.92843303]
[1758840049833,0.001,3912.3,3911.9,2.55624807]
[1758840050037,0.6804,3912.2,3912.0,2.55623273]
[1758840050256,0.6804,3912.1,3912.0,2.55623273]
[1758840050988,0.6804,3912.1,3911.7,4.372]
[1758840051198,0.6804,3912.0,3911.8,2.5563184]
[1758840051395,0.2312,3912.0,3911.7,4.372]
[1758840051608,0.2312,3912.0,3911.8,2.55632193]
[1758840051896,0.2312,3911.9,3911.4,6.92461256]
[1758840052195,0.001,3912.3,3911.5,0.25556563]
[1758840052398,0.001,3912.3,3911.7,2.55643326]
[1758840052562,0.001,3912.3,3911.8,0.02556367]
[1758840052767,0.001,3912.3,3911.8,2.58192453]
[1758840052962,0.001,3912.3,3912.1,2.55616152]
[1758840053264,0.001,3912.3,3912.0,2.55621649]
[1758840053265,0.6814,3912.3,3912.0,2.55621649]
[1758840053466,0.4492,3912.2,3911.9,2.55630256]
[1758840053866,0.4492,3912.2,3912.0,2.55622197]
[1758840054199,0.4492,3912.2,3912.1,2.55617187]
[1758840054891,0.4492,3912.2,3911.8,2.68355644]
[1758840054892,0.4492,3912.2,3912.0,2.55621635]
[1758840055297,0.2322,3912.3,3911.9,0.02556302]
[1758840055495,0.2322,3912.3,3912.1,2.55616563]
[1758840055496,0.6814,3912.3,3912.1,2.55616563]
[1758840055692,0.4502,3912.3,3912.2,2.55610653]
[1758840056096,0.001,3912.3,3912.2,2.55610653]
[1758840056264,0.001,3912.3,3912.2,2.68330653]
[1758840056798,0.001,3912.3,3912.2,0.1272]
[1758840056977,0.001,3912.3,3912.2,2.68330653]
[1758840057916,0.001,3912.3,3912.2,0.1272]
[1758840058699,1.02642,3912.3,3911.6,4.361]
[1758840058903,0.34602,3912.3,3911.8,0.1272]
[1758840059078,0.6804,3912.2,3911.7,2.55641685]
[1758840059282,0.6804,3912.1,3911.7,2.55641685]
[1758840059607,0.6804,3912.0,3911.6,2.6836891]
[1758840059908,0.001,3912.3,3912.0,2.55620747]
[1758840060119,0.4492,3912.2,3911.8,0.1272]
[1758840060318,0.001,3912.3,3911.8,0.1272]
[1758840060874,0.4492,3912.2,3911.8,0.1272]
[1758840061078,0.4492,3912.2,3911.9,2.55629095]
[1758840061314,0.001,3912.3,3912.2,2.55610653]
[1758840061481,0.001,3912.3,3912.2,6.91710653]
[1758840061681,0.001,3912.3,3912.2,7.59680653]
[1758840062212,0.001,3912.3,3912.2,8.38880653]
[1758840062416,0.001,3912.3,3912.2,7.15210653]
[1758840062587,0.001,3912.3,3912.2,8.57264021]
[1758840067589,0.001,3912.3,3912.2,2.55610653]
[1758840067794,0.001,3912.3,3912.2,3.28616759]
[1758840071414,0.001,3912.3,3912.2,3.41336759]
[1758840072933,0.001,3912.3,3912.2,3.38780653]
[1758840073234,0.001,3912.3,3912.2,3.41336759]
[1758840073529,0.001,3912.3,3912.2,4.44662737]
[1758840074234,0.001,3912.3,3912.2,2.68330653]
[1758840074531,0.6996,3912.3,3912.2,7.03930653]
[1758840074725,0.6996,3912.3,3912.2,4.4842]
[1758840074920,0.6996,3912.3,3912.2,0.1272]
[1758840075430,0.6996,3912.3,3912.0,0.1272]
[1758840075639,0.6986,3912.2,3912.0,0.1272]
[1758840075818,0.4526,3912.3,3912.0,0.1272]
[1758840076029,0.6986,3912.2,3912.1,2.55617187]
[1758840076805,0.6986,3912.2,3912.0,2.68342033]
[1758840077021,0.6986,3912.1,3912.0,2.68342033]
[1758840077409,0.6986,3912.1,3912.0,0.1272]
[1758840077716,0.6986,3912.1,3912.0,2.68343721]
[1758840079036,0.4516,3912.1,3912.0,2.68343721]
[1758840079235,0.6999,3912.1,3912.0,0.1272]
[1758840079437,0.6999,3912.1,3911.9,0.002]
[1758840079637,0.2483,3912.1,3911.9,0.002]
[1758840079814,0.7014,3912.0,3911.9,0.002]
[1758840087446,10.8914,3912.0,3911.9,0.002]
[1758840089768,10.6431,3912.0,3911.9,0.002]
[1758840090577,10.6431,3912.0,3911.9,2.55830256]
[1758840090869,10.6431,3912.0,3911.9,0.002]
[1758840091572,10.6431,3912.0,3911.9,2.55830256]
[1758840091874,10.6431,3912.0,3911.9,0.002]
[1758840093270,10.6431,3912.0,3911.9,2.55830256]
[1758840093571,10.6431,3912.0,3911.9,0.002]
[1758840093754,10.6431,3912.0,3911.9,2.55830256]
[1758840094562,14.9290099,3912.0,3911.9,0.002]
[1758840095848,19.94108354,3912.0,3911.9,0.002]
[1758840097240,21.72384633,3912.0,3911.9,0.002]
[1758840097565,26.41008354,3912.0,3911.9,0.002]
[1758840098066,19.94108354,3912.0,3911.9,0.002]
[1758840098248,26.40908354,3912.0,3911.9,0.002]
[1758840104958,9.84240851,3911.6,3911.5,0.002]
[1758840105154,22.9042865,3911.6,3911.5,0.002]
[1758840105360,23.6056865,3911.6,3911.5,0.002]
[1758840105560,24.00663524,3911.6,3911.5,0.002]
[1758840105960,23.30523524,3911.6,3911.5,0.002]
[1758840106146,9.84266997,3911.2,3911.1,0.002]